bitfinex-derivatives/quotes_BTCF0:USTF0_20241122
["timestamp","ask_amount","ask_price","bid_price","bid_amount"]
[1732244231897,0.79778713,98573.0,98551.0,0.02026468]
[1732244231898,0.411481,98561.0,98554.0,0.0101]
[1732244232207,0.050686,98552.0,98545.0,0.0101]
[1732244232404,0.050691,98543.0,98542.0,7.999e-05]
[1732244232811,0.050691,98543.0,98542.0,0.00018349]
[1732244233105,0.050731,98543.0,98542.0,0.00018349]
[1732244234102,0.050731,98543.0,98542.0,0.01018349]
[1732244236097,0.050731,98543.0,98542.0,0.00018349]
[1732244237005,4e-05,98543.0,98542.0,0.00018349]
[1732244237502,4e-05,98543.0,98542.0,0.01018349]
[1732244237812,4e-05,98543.0,98542.0,0.00018349]
[1732244239210,4e-05,98543.0,98542.0,0.01018349]
[1732244239405,4e-05,98543.0,98542.0,0.14018349]
[1732244239601,4e-05,98543.0,98542.0,0.44462349]
[1732244240907,4e-05,98543.0,98542.0,0.53952349]
[1732244244602,4e-05,98543.0,98542.0,0.95101449]
[1732244245314,0.05067,98585.0,98543.0,0.30444]
[1732244245614,0.050674,98576.0,98575.0,0.050673]
[1732244245806,0.050672,98580.0,98579.0,0.050672]
[1732244246010,0.050674,98576.0,98575.0,0.00026898]
[1732244246215,0.050674,98576.0,98575.0,0.05078299]
[1732244246408,0.08297332,98576.0,98575.0,0.05078299]
[1732244247012,0.08297332,98576.0,98575.0,0.00010899]
[1732244247208,0.08930681,98576.0,98575.0,0.00010899]
[1732244247604,0.03863281,98576.0,98575.0,0.05078299]
[1732244248003,0.03863281,98576.0,98575.0,0.14078299]
[1732244248808,0.03863281,98576.0,98575.0,0.15078299]
[1732244249215,0.02691667,98576.0,98575.0,0.15078299]
[1732244249513,0.03975595,98576.0,98575.0,0.15078299]
[1732244255219,0.09042995,98576.0,98575.0,0.15078299]
[1732244256617,0.06988711,98576.0,98575.0,0.15078299]
[1732244256810,0.09074929,98576.0,98575.0,0.15078299]
[1732244257211,0.04007529,98576.0,98575.0,0.15078299]
[1732244258114,0.09074929,98576.0,98575.0,0.15078299]
[1732244260213,0.01956974,98576.0,98575.0,0.15078299]
[1732244260414,0.04068412,98576.0,98575.0,0.15078299]
[1732244261022,0.09135812,98576.0,98575.0,0.15078299]
[1732244262222,0.09135812,98576.0,98575.0,0.10010899]
[1732244262522,0.10639521,98576.0,98575.0,0.00010899]
[1732244263031,0.10639521,98576.0,98575.0,0.06010899]
[1732244263518,0.09135812,98576.0,98575.0,0.12078299]
[1732244265023,0.0904125,98576.0,98575.0,0.12078299]
[1732244266018,0.0397385,98576.0,98575.0,0.12078299]
[1732244266724,0.0904125,98576.0,98575.0,0.12078299]
[1732244267121,0.0904125,98576.0,98575.0,0.07010899]
[1732244267311,0.0904125,98576.0,98575.0,0.06010899]
[1732244267624,0.0904125,98576.0,98575.0,0.12078299]
[1732244268320,0.0397385,98576.0,98575.0,0.48158299]
[1732244270324,0.0397385,98576.0,98569.0,0.04034915]
[1732244270325,0.03340461,98576.0,98569.0,0.04034915]
[1732244270519,0.03340461,98576.0,98562.0,0.0024]
[1732244270520,0.05068,98564.0,98562.0,0.0024]
[1732244270713,0.05068,98564.0,98563.0,0.01]
[1732244270714,0.02686564,98564.0,98563.0,0.01]
[1732244271020,0.02690564,98564.0,98563.0,0.01]
[1732244271217,0.02690564,98564.0,98551.0,0.0101]
[1732244271218,0.02057207,98564.0,98553.0,0.04110666]
[1732244271419,0.050685,98554.0,98553.0,0.09]
[1732244271721,0.06355754,98554.0,98553.0,0.140686]
[1732244273112,0.01287254,98554.0,98553.0,0.140686]
[1732244273922,0.01248615,98554.0,98553.0,0.140686]
[1732244276127,0.01257826,98554.0,98553.0,0.140686]
[1732244276623,4e-05,98554.0,98553.0,0.140686]
[1732244277825,0.050725,98554.0,98553.0,0.140686]
[1732244278227,4e-05,98554.0,98553.0,0.140686]
[1732244278726,4e-05,98554.0,98553.0,0.445086]
[1732244280320,4e-05,98554.0,98553.0,0.140686]
[1732244280724,4e-05,98554.0,98553.0,0.09]
[1732244281222,4e-05,98554.0,98553.0,0.07]
[1732244281525,0.44974,98554.0,98553.0,0.07]
[1732244281736,0.44974,98554.0,98553.0,0.1]
[1732244283330,0.08894,98554.0,98553.0,0.1]
[1732244283921,0.44974,98554.0,98553.0,0.1]
[1732244284126,0.36084,98554.0,98553.0,0.1]
[1732244285432,4e-05,98554.0,98553.0,0.1]
[1732244290137,4e-05,98554.0,98553.0,0.150686]
[1732244290526,4e-05,98554.0,98553.0,0.455086]
[1732244293054,4e-05,98554.0,98553.0,0.150686]
[1732244294037,4e-05,98554.0,98553.0,0.455086]
[1732244294335,0.32617647,98574.0,98573.0,0.050675]
[1732244294535,0.3379523,98574.0,98573.0,0.230675]
[1732244294741,0.32617647,98574.0,98573.0,0.230675]
[1732244295340,0.3608,98585.0,98582.0,0.05067]
[1732244295543,0.3608,98585.0,98583.0,0.05067]
[1732244295843,0.3608,98585.0,98583.0,0.27090999]
[1732244299240,0.3608,98585.0,98583.0,0.31228059]
[1732244299435,0.41147,98585.0,98583.0,0.26161059]
[1732244300051,0.3608,98585.0,98583.0,0.31228059]
[1732244300945,0.3608,98595.0,98594.0,0.050664]
[1732244301148,0.3608,98595.0,98594.0,0.190664]
[1732244301352,0.3608,98595.0,98594.0,0.19090399]
[1732244301848,0.3608,98595.0,98594.0,0.14023999]
[1732244304947,0.3608,98595.0,98594.0,0.18167316]
[1732244308439,0.37337528,98595.0,98594.0,0.18167316]
[1732244308645,0.3608,98595.0,98594.0,0.18167316]
[1732244310946,0.05067,98584.0,98583.0,0.00023999]
[1732244311145,0.41147,98584.0,98583.0,0.00023999]
[1732244311344,0.41151,98584.0,98583.0,0.00023999]
[1732244312752,0.41151,98584.0,98583.0,0.09023999]
[1732244312950,0.36084,98584.0,98583.0,0.14090999]
[1732244313157,4e-05,98584.0,98583.0,0.14090999]
[1732244316850,0.3608,98595.0,98594.0,0.050664]
[1732244317057,0.1,98600.0,98594.0,0.21]
[1732244317243,0.09216,98600.0,98599.0,0.050662]
[1732244317553,0.36092427,98615.0,98613.0,0.050655]
[1732244317755,0.36092427,98615.0,98613.0,0.220655]
[1732244317952,0.36092427,98615.0,98614.0,4.001e-05]
[1732244318147,0.36092427,98615.0,98614.0,0.16004001]
[1732244321459,0.36092427,98615.0,98614.0,0.20126819]
[1732244321964,0.3737297,98615.0,98614.0,0.20126819]
[1732244322159,0.36092427,98615.0,98614.0,0.20126819]
[1732244322364,0.37373175,98615.0,98614.0,0.20126819]
[1732244323068,0.37373175,98615.0,98614.0,0.13126819]
[1732244323069,0.42448956,98615.0,98614.0,0.13126819]
[1732244323375,0.42448956,98615.0,98614.0,0.09004001]
[1732244324576,0.42448956,98615.0,98614.0,0.16004001]
[1732244329173,0.42436918,98615.0,98614.0,0.16004001]
[1732244329487,0.42436918,98615.0,98614.0,0.09004001]
[1732244329784,0.42436918,98615.0,98614.0,0.16004001]
[1732244335084,0.42436918,98615.0,98614.0,0.21069401]
[1732244335281,0.37371518,98615.0,98614.0,0.21069401]
[1732244336077,0.01291518,98615.0,98614.0,0.21069401]
[1732244338079,0.00012427,98615.0,98614.0,0.21069401]
[1732244339485,0.3608,98634.0,98633.0,0.050644]
[1732244339679,0.3608,98634.0,98633.0,0.260644]
[1732244339986,0.3608,98634.0,98633.0,0.26068401]
[1732244339987,0.3960183,98634.0,98633.0,0.26068401]
[1732244340486,0.3960183,98634.0,98633.0,0.26075621]
[1732244340888,0.0352183,98634.0,98633.0,0.26075621]
[1732244342189,0.0135455,98634.0,98633.0,0.26075621]
[1732244342378,0.03569391,98634.0,98633.0,0.26075621]
[1732244346183,0.3608,98653.0,98633.0,0.55419675]
[1732244346385,0.050635,98651.0,98649.0,0.050636]
[1732244346684,0.3608,98653.0,98649.0,0.050636]
[1732244346685,0.3608,98653.0,98649.0,0.210636]
[1732244346888,0.3608,98653.0,98650.0,0.050635]
[1732244347081,0.3608,98653.0,98652.0,0.050635]
[1732244347279,0.05063,98662.0,98658.0,0.050632]
[1732244347483,0.00632832,98661.0,98659.0,0.050631]
[1732244347684,0.00632832,98660.0,98659.0,0.190631]
[1732244347881,0.00632832,98660.0,98659.0,0.19070202]
[1732244348184,0.3608,98663.0,98661.0,0.05063]
[1732244348393,0.00632811,98662.0,98661.0,0.23063]
[1732244348580,0.3608,98663.0,98661.0,0.23063]
[1732244348883,0.3608,98663.0,98662.0,4.001e-05]
[1732244349085,0.3608,98663.0,98662.0,0.21004001]
[1732244349681,0.1807,98682.0,98675.0,0.050622]
[1732244349682,0.5415,98682.0,98675.0,0.050622]
[1732244349884,0.5415,98682.0,98675.0,0.13]
[1732244349885,0.050621,98680.0,98675.0,0.13]
[1732244350078,0.050621,98680.0,98679.0,0.3608]
[1732244350390,0.050621,98680.0,98679.0,0.4908]
[1732244350582,0.050621,98680.0,98679.0,0.13]
[1732244350981,0.05694845,98680.0,98679.0,0.06]
[1732244351186,0.050625,98671.0,98670.0,0.3608]
[1732244351483,0.050625,98671.0,98670.0,0.4008]
[1732244351684,0.050665,98671.0,98670.0,0.4008]
[1732244352388,0.050665,98671.0,98670.0,0.44151098]
[1732244353391,0.0569928,98671.0,98670.0,0.44151098]
[1732244353586,0.050631,98660.0,98659.0,7.102e-05]
[1732244353983,0.050671,98660.0,98659.0,7.102e-05]
[1732244354281,0.0569997,98660.0,98659.0,7.102e-05]
[1732244354983,0.4177997,98660.0,98659.0,7.102e-05]
[1732244355181,0.0569997,98660.0,98659.0,7.102e-05]
[1732244355585,0.3610797,98660.0,98659.0,2e-08]
[1732244355788,0.6610797,98660.0,98659.0,2e-08]
[1732244356182,2.18334219,98660.0,98659.0,2e-08]
[1732244356389,2.19861978,98660.0,98659.0,2e-08]
[1732244356896,2.18334219,98660.0,98659.0,2e-08]
[1732244357389,2.154751,98660.0,98659.0,2e-08]
[1732244357589,2.16108124,98660.0,98659.0,2e-08]
[1732244358091,2.19838082,98660.0,98659.0,2e-08]
[1732244358285,2.18319898,98660.0,98659.0,2e-08]
[1732244358791,2.21220397,98660.0,98659.0,2e-08]
[1732244358993,0.050644,98633.0,98632.0,0.0051]
[1732244359186,0.050651,98620.0,98619.0,0.3608]
[1732244359395,0.06448181,98620.0,98619.0,0.3608]
[1732244359587,0.06452181,98620.0,98619.0,0.3608]
[1732244360187,0.06452181,98620.0,98619.0,0.40192051]
[1732244360596,0.06452181,98620.0,98619.0,0.41192051]
[1732244360997,0.06452181,98620.0,98619.0,0.42192051]
[1732244362596,0.06452181,98620.0,98619.0,0.47257251]
[1732244363000,0.06452181,98620.0,98619.0,0.42192051]
[1732244363293,0.06429923,98620.0,98619.0,0.42192051]
[1732244365091,0.01364823,98620.0,98619.0,0.42192051]
[1732244365291,0.01364823,98620.0,98619.0,0.72612051]
[1732244365493,0.11936,98641.0,98629.0,0.050646]
[1732244365698,0.050642,98637.0,98636.0,0.3608]
[1732244365896,0.07238827,98637.0,98636.0,0.4808]
[1732244366199,0.07256137,98637.0,98636.0,0.4808]
[1732244366988,0.02191937,98637.0,98636.0,0.4808]
[1732244367395,0.02191937,98637.0,98636.0,0.52222678]
[1732244367698,0.050635,98653.0,98637.0,0.050642]
[1732244368005,0.02263064,98652.0,98646.0,0.3608]
[1732244368195,0.02263064,98651.0,98649.0,0.050636]
[1732244368395,0.02263064,98650.0,98649.0,0.180636]
[1732244369091,0.02263064,98650.0,98649.0,0.541436]
[1732244369594,0.02263064,98650.0,98649.0,0.58160199]
[1732244370191,0.050633,98655.0,98649.0,0.53096599]
[1732244370396,0.02304398,98654.0,98649.0,0.53096599]
[1732244370798,0.02304398,98653.0,98652.0,0.050635]
[1732244371005,0.02304398,98653.0,98652.0,0.200635]
[1732244372206,0.07367798,98653.0,98652.0,0.15]
[1732244374109,0.050636,98649.0,98631.0,0.07089812]
[1732244374307,0.050642,98638.0,98637.0,0.1]
[1732244374610,0.050682,98638.0,98637.0,0.1]
[1732244375197,0.050682,98638.0,98637.0,0.14013705]
[1732244377504,0.0648006,98638.0,98637.0,0.14013705]
[1732244379414,0.050682,98638.0,98637.0,0.14013705]
[1732244379604,0.06477154,98638.0,98637.0,0.14013705]
[1732244380308,0.06477154,98638.0,98637.0,0.50093705]
[1732244380700,0.08743682,98638.0,98637.0,0.3608]
[1732244380901,0.08743682,98638.0,98623.0,0.0868]
[1732244380902,0.08705855,98638.0,98623.0,0.0868]
[1732244381099,0.050649,98624.0,98623.0,0.15]
[1732244381299,0.050649,98624.0,98623.0,0.07]
[1732244381300,0.06446612,98624.0,98623.0,0.07]
[1732244381711,0.06450612,98624.0,98623.0,0.07]
[1732244382006,0.06450612,98624.0,98623.0,0.08]
[1732244382202,0.01385712,98624.0,98623.0,0.17121242]
[1732244383799,0.06450612,98624.0,98623.0,0.17121242]
[1732244384916,0.06450612,98624.0,98623.0,0.12056242]
[1732244385400,0.06450612,98624.0,98623.0,0.11056242]
[1732244385603,0.06450612,98624.0,98623.0,0.13056242]
[1732244385604,0.08629131,98624.0,98623.0,0.13056242]
[1732244385800,0.050689,98624.0,98623.0,0.13056242]
[1732244386004,0.08607269,98624.0,98623.0,0.13056242]
[1732244388014,0.08557001,98624.0,98623.0,0.13056242]
[1732244388311,0.08557001,98624.0,98623.0,0.07]
[1732244390212,0.08557001,98624.0,98623.0,0.08]
[1732244391314,0.050689,98624.0,98623.0,0.08]
[1732244391615,0.06415594,98624.0,98623.0,0.08]
[1732244393910,0.06415536,98624.0,98623.0,0.08]
[1732244394418,0.06415536,98624.0,98623.0,0.01]
[1732244394621,0.050657,98609.0,98608.0,0.063157]
[1732244394808,0.050657,98609.0,98608.0,0.290657]
[1732244395010,0.050697,98609.0,98608.0,0.290657]
[1732244395210,0.050697,98609.0,98608.0,0.33216683]
[1732244396719,0.06401301,98609.0,98608.0,0.33216683]
[1732244396918,0.01335601,98609.0,98608.0,0.33216683]
[1732244397214,0.06401301,98609.0,98608.0,0.33216683]
[1732244398416,0.06406001,98609.0,98608.0,0.33216683]
[1732244399513,0.06406001,98609.0,98608.0,0.35242752]
[1732244399732,0.06406001,98609.0,98608.0,0.71322752]
[1732244400116,0.01340301,98609.0,98608.0,0.71322752]
[1732244400428,0.06406001,98609.0,98608.0,0.71322752]
[1732244400720,0.06406001,98609.0,98608.0,0.66257052]
[1732244401021,0.06406001,98609.0,98608.0,0.71322752]
[1732244401409,0.01340301,98609.0,98608.0,0.71322752]
[1732244402808,0.11848,98637.0,98624.0,0.050649]
[1732244403021,0.02199026,98625.0,98624.0,0.5408]
[1732244403315,0.0047,98641.0,98624.0,0.5408]
[1732244403316,0.050642,98638.0,98624.0,0.95236901]
[1732244403516,0.050642,98638.0,98637.0,0.050642]
[1732244403715,0.07289308,98638.0,98637.0,0.17076201]
[1732244404023,0.07315465,98638.0,98637.0,0.17076201]
[1732244405220,0.07315465,98638.0,98637.0,0.12012001]
[1732244406319,0.07315465,98638.0,98637.0,0.15987742]
[1732244406913,0.02251265,98638.0,98637.0,0.21051942]
[1732244407322,0.02251265,98638.0,98637.0,0.15987742]
[1732244407323,0.07315465,98638.0,98637.0,0.15987742]
[1732244407525,0.09557295,98638.0,98637.0,0.15987742]
[1732244407916,0.0730603,98638.0,98637.0,0.15987742]
[1732244409114,0.050642,98638.0,98637.0,0.15987742]
[1732244411117,0.050642,98638.0,98637.0,0.03987742]
[1732244411318,0.37731074,98638.0,98637.0,0.03987742]
[1732244411524,0.40615445,98638.0,98637.0,0.00012001]
[1732244412223,0.70615445,98638.0,98621.0,0.0047]
[1732244412426,0.050652,98618.0,98617.0,0.3608]
[1732244413011,0.050652,98618.0,98617.0,0.40212233]
[1732244413219,0.050652,98618.0,98617.0,0.3608]
[1732244414123,0.050652,98618.0,98617.0,0.3708]
[1732244414728,0.06411608,98618.0,98617.0,0.3708]
[1732244414916,0.06411608,98618.0,98617.0,0.3808]
[1732244415524,0.06411608,98618.0,98617.0,0.3708]
[1732244415724,0.08568697,98618.0,98617.0,0.3708]
[1732244416425,0.06411608,98618.0,98617.0,0.3808]
[1732244416727,0.08568634,98618.0,98617.0,0.3808]
[1732244421119,0.07222226,98618.0,98617.0,0.3808]
[1732244421325,0.10766775,98618.0,98617.0,0.3808]
[1732244421730,0.1077727,98618.0,98617.0,0.3808]
[1732244422035,0.08620244,98618.0,98617.0,0.3808]
[1732244422430,0.03555044,98618.0,98617.0,0.3808]
[1732244422730,0.01363288,98618.0,98617.0,0.431453]
[1732244423338,4e-05,98623.0,98622.0,0.05065]
[1732244423635,0.01409028,98623.0,98622.0,0.28069]
[1732244423937,4e-05,98623.0,98622.0,0.28069]
[1732244424831,0.055341,98640.0,98622.0,0.28069]
[1732244424832,0.055341,98640.0,98637.0,0.050642]
[1732244425031,0.050636,98650.0,98639.0,0.7216]
[1732244425337,0.00048203,98660.0,98639.0,0.7216]
[1732244425338,0.050634,98654.0,98649.0,0.36084]
[1732244425539,0.02257243,98653.0,98649.0,0.5608]
[1732244425737,0.07320743,98652.0,98649.0,0.5608]
[1732244425941,0.02257243,98651.0,98649.0,0.5608]
[1732244426432,0.01406437,98650.0,98649.0,0.5608]
[1732244426831,0.0366368,98650.0,98649.0,0.5608]
[1732244427135,0.03650365,98650.0,98649.0,0.5608]
[1732244427433,0.03650365,98650.0,98649.0,0.611436]
[1732244427434,0.01401036,98650.0,98649.0,0.611436]
[1732244428932,0.01382805,98650.0,98649.0,0.65228183]
[1732244429137,0.01382805,98650.0,98649.0,0.60164583]
[1732244429335,0.06446405,98650.0,98649.0,0.60164583]
[1732244429531,0.06446405,98650.0,98649.0,0.47164583]
[1732244430133,0.08666735,98650.0,98649.0,0.07]
[1732244430536,0.050639,98643.0,98640.0,0.03993454]
[1732244430726,0.01382805,98642.0,98640.0,0.03]
[1732244430931,0.01379896,98641.0,98640.0,0.03]
[1732244434347,0.01376268,98641.0,98640.0,0.03]
[1732244437437,4e-05,98641.0,98640.0,0.03]
[1732244439637,0.06451919,98641.0,98640.0,0.03]
[1732244440542,0.050647,98628.0,98624.0,0.0047]
[1732244440742,0.050651,98622.0,98620.0,0.3608]
[1732244440935,0.050651,98622.0,98620.0,0.3708]
[1732244441130,4e-05,98621.0,98620.0,0.3608]
[1732244441836,0.01346228,98621.0,98620.0,0.3608]
[1732244442736,0.01346228,98621.0,98620.0,0.4508]
[1732244442936,0.01346228,98621.0,98620.0,0.4308]
[1732244443843,0.01334403,98621.0,98620.0,0.4308]
[1732244447233,0.01334403,98621.0,98620.0,0.4508]
[1732244449743,0.01334403,98621.0,98620.0,0.4308]
[1732244450341,0.01334403,98621.0,98620.0,0.4408]
[1732244454642,4e-05,98621.0,98620.0,0.4408]
[1732244455046,0.01319429,98621.0,98620.0,0.4408]
[1732244455344,4e-05,98621.0,98620.0,0.4408]
[1732244456546,0.01323509,98621.0,98620.0,0.4408]
[1732244456749,4e-05,98621.0,98620.0,0.6264]
[1732244457048,0.050643,98636.0,98620.0,0.6264]
[1732244457241,0.050644,98634.0,98620.0,0.75483459]
[1732244457443,0.01322529,98633.0,98621.0,0.05065]
[1732244457751,0.01322529,98632.0,98630.0,0.050646]
[1732244458052,0.39681195,98662.0,98630.0,0.050646]
[1732244458053,0.092,98649.0,98631.0,0.3608]
[1732244458350,0.050641,98640.0,98639.0,0.3608]
[1732244458544,0.06404663,98640.0,98639.0,0.4508]
[1732244458853,0.0134549,98640.0,98639.0,0.4508]
[1732244459149,0.0640959,98640.0,98639.0,0.4508]
[1732244459551,0.0640959,98640.0,98639.0,0.49129379]
[1732244459951,0.0640959,98640.0,98639.0,0.4508]
[1732244460549,0.08549761,98640.0,98639.0,0.09]
[1732244460752,0.050647,98629.0,98628.0,0.0125]
[1732244460949,0.0641019,98629.0,98628.0,0.01]
[1732244461149,0.0641419,98629.0,98628.0,0.01]
[1732244461448,0.05065,98623.0,98622.0,0.04048569]
[1732244461643,0.05065,98623.0,98621.0,0.05065]
[1732244461644,0.05065,98622.0,98621.0,0.05065]
[1732244461838,0.01335836,98622.0,98621.0,0.02]
[1732244462039,4e-05,98622.0,98621.0,0.070651]
[1732244462245,0.06401515,98622.0,98621.0,0.070651]
[1732244462451,0.06405319,98622.0,98621.0,0.070651]
[1732244464445,0.05069,98622.0,98621.0,0.070651]
[1732244464648,0.01340879,98622.0,98621.0,0.070651]
[1732244464856,4e-05,98622.0,98621.0,0.070651]
[1732244467043,4e-05,98622.0,98621.0,0.02]
[1732244467355,4e-05,98622.0,98621.0,0.070651]
[1732244468250,0.05069,98622.0,98621.0,0.02]
[1732244468847,4e-05,98622.0,98621.0,0.070651]
[1732244473058,4e-05,98622.0,98621.0,0.02]
[1732244473257,0.05069,98622.0,98621.0,0.02]
[1732244473759,0.05069,98622.0,98621.0,0.070651]
[1732244473952,0.06397823,98622.0,98621.0,0.070651]
[1732244474561,0.06397823,98622.0,98621.0,0.02]
[1732244474756,0.06397823,98622.0,98620.0,0.40184883]
[1732244474757,0.050651,98621.0,98620.0,0.40184883]
[1732244474950,0.06393923,98621.0,98620.0,0.45184883]
[1732244475256,0.06397923,98621.0,98620.0,0.45184883]
[1732244475861,0.01332823,98621.0,98620.0,0.50249983]
[1732244476054,0.06397923,98621.0,98620.0,0.45184883]
[1732244476875,0.01332823,98621.0,98620.0,0.50249983]
[1732244477056,4e-05,98621.0,98620.0,0.50249983]
[1732244480861,0.0047,98640.0,98620.0,0.50249983]
[1732244481061,0.03470405,98639.0,98636.0,0.050643]
[1732244481267,0.050642,98637.0,98636.0,0.190643]
[1732244481466,0.06398971,98637.0,98636.0,0.190643]
[1732244483453,0.03482275,98637.0,98636.0,0.190643]
[1732244483957,0.0348027,98637.0,98636.0,0.23171788]
[1732244484159,0.01334771,98637.0,98636.0,0.23171788]
[1732244484382,0.03480982,98637.0,98636.0,0.23171788]
[1732244486870,0.01334771,98637.0,98636.0,0.23171788]
[1732244487253,0.01334771,98637.0,98636.0,0.59251788]
[1732244488266,0.01385144,98637.0,98636.0,0.59251788]
[1732244488462,0.050634,98653.0,98636.0,0.59251788]
[1732244488664,0.03602142,98652.0,98651.0,0.050635]
[1732244488865,0.03602142,98652.0,98651.0,0.601435]
[1732244491474,0.050634,98655.0,98654.0,0.050634]
[1732244491666,0.050634,98655.0,98654.0,0.180634]
[1732244491881,0.06458408,98655.0,98654.0,0.180634]
[1732244492261,0.10922444,98655.0,98654.0,0.13]
[1732244492869,0.08690422,98655.0,98654.0,0.13]
[1732244493972,0.08690422,98655.0,98654.0,0.1704983]
[1732244494961,0.08745676,98655.0,98654.0,0.1704983]
[1732244495267,0.08745676,98655.0,98654.0,0.2211323]
[1732244495469,0.03682276,98655.0,98654.0,0.2211323]
[1732244496767,0.03682276,98655.0,98654.0,0.1704983]
[1732244496978,0.08745576,98655.0,98654.0,0.1704983]
[1732244498269,0.01437802,98655.0,98654.0,0.1704983]
[1732244498472,0.01437802,98655.0,98654.0,0.2211323]
[1732244502076,0.06501102,98655.0,98654.0,0.1704983]
[1732244503272,0.08875767,98655.0,98654.0,0.1704983]
[1732244505378,0.05696201,98655.0,98654.0,0.0404983]
[1732244505574,0.050637,98649.0,98646.0,0.3608]
[1732244505773,1.50052001,98668.0,98646.0,0.50162352]
[1732244505774,0.050637,98647.0,98646.0,0.50162352]
[1732244505978,0.07452913,98647.0,98646.0,0.50162352]
[1732244506374,0.08943671,98647.0,98646.0,0.50162352]
[1732244507278,0.09576594,98647.0,98646.0,0.50162352]
[1732244507477,0.09576594,98647.0,98646.0,0.11082352]
[1732244508072,0.09576594,98647.0,98646.0,0.07]
[1732244508587,0.09628586,98647.0,98646.0,0.07]
[1732244509087,0.09628586,98647.0,98646.0,0.09]
[1732244509287,0.09671353,98647.0,98646.0,0.09]
[1732244509473,0.09671353,98647.0,98646.0,0.4508]
[1732244509678,0.04607653,98647.0,98646.0,0.4508]
[1732244511081,0.04607653,98647.0,98646.0,0.09]
[1732244511274,0.04607653,98647.0,98646.0,0.02]
[1732244511480,0.050642,98638.0,98637.0,0.3608]
[1732244511681,0.09625113,98638.0,98637.0,0.4408]
[1732244511891,0.09625113,98638.0,98637.0,0.07]
[1732244512191,0.41854765,98638.0,98615.0,0.3608]
[1732244512388,0.12843459,98633.0,98616.0,0.0101]
[1732244512696,0.050691,98621.0,98620.0,0.04]
[1732244512891,0.08997035,98621.0,98620.0,0.04]
[1732244520300,0.06579844,98621.0,98620.0,0.04]
[1732244520706,0.01514744,98621.0,98620.0,0.04]
[1732244521203,0.06579844,98621.0,98620.0,0.04]
[1732244521390,0.050691,98621.0,98620.0,0.04]
[1732244521794,0.06540356,98621.0,98620.0,0.04]
[1732244522002,0.08011473,98621.0,98620.0,0.04]
[1732244522202,0.10349121,98621.0,98620.0,0.04]
[1732244522805,0.08011473,98621.0,98620.0,0.04]
[1732244523197,0.06540356,98621.0,98620.0,0.04]
[1732244524298,0.0887342,98621.0,98620.0,0.04]
[1732244524499,0.06540356,98621.0,98620.0,0.04]
[1732244524901,0.0652689,98621.0,98620.0,0.04]
[1732244525106,0.06530982,98621.0,98620.0,0.04]
[1732244525499,0.08876133,98621.0,98620.0,0.04]
[1732244525904,0.06530982,98621.0,98620.0,0.04]
[1732244526108,0.08879459,98621.0,98620.0,0.04]
[1732244526506,0.39299459,98621.0,98620.0,0.03]
[1732244526710,0.39299459,98621.0,98614.0,0.00082]
[1732244526711,0.050653,98616.0,98614.0,0.00082]
[1732244526918,0.050653,98616.0,98605.0,0.03985764]
[1732244527207,0.050698,98606.0,98596.0,0.0101]
[1732244527414,0.050698,98606.0,98596.0,0.01]
[1732244527415,0.10112886,98605.0,98596.0,0.01]
[1732244527604,0.050703,98597.0,98596.0,0.05000349]
[1732244527806,0.06532948,98597.0,98596.0,0.01]
[1732244528409,0.06532948,98597.0,98587.0,0.0101]
[1732244528410,0.050668,98588.0,98587.0,0.0101]
[1732244528615,0.050669,98586.0,98581.0,0.04054638]
[1732244528813,0.01462648,98585.0,98576.0,0.1345]
[1732244529013,0.01466648,98585.0,98576.0,0.1345]
[1732244529213,0.01466648,98585.0,98579.0,0.04060715]
[1732244529616,0.050673,98577.0,98576.0,0.1345]
[1732244529916,0.06529948,98577.0,98575.0,0.3608]
[1732244530109,4e-05,98585.0,98563.0,0.0101]
[1732244530110,0.05068,98564.0,98563.0,0.0101]
[1732244530306,0.050681,98562.0,98561.0,0.3608]
[1732244530701,0.050683,98558.0,98556.0,0.07093518]
[1732244530910,0.050683,98558.0,98557.0,0.3608]
[1732244531220,0.050683,98558.0,98557.0,0.3708]
[1732244531412,0.050683,98558.0,98557.0,0.3608]
[1732244532912,4e-05,98562.0,98561.0,0.050681]
[1732244533114,0.01359214,98562.0,98557.0,0.3608]
[1732244533315,0.050683,98559.0,98557.0,0.3908]
[1732244533517,4e-05,98558.0,98557.0,0.3908]
[1732244534019,4e-05,98558.0,98557.0,0.4008]
[1732244534205,4e-05,98558.0,98557.0,0.3608]
[1732244534405,4e-05,98558.0,98557.0,0.4208]
[1732244535310,0.01326475,98558.0,98557.0,0.4208]
[1732244536415,0.01326475,98558.0,98557.0,0.4408]
[1732244536819,0.01326475,98558.0,98557.0,0.491483]
[1732244537210,0.01326475,98558.0,98557.0,0.4408]
[1732244538919,4e-05,98562.0,98561.0,0.050681]
[1732244539115,4e-05,98562.0,98561.0,0.661481]
[1732244539315,0.0047,98578.0,98561.0,0.965841]
[1732244539521,0.0047,98591.0,98577.0,0.3608]
[1732244539820,0.02824066,98590.0,98588.0,0.050667]
[1732244540113,0.11712,98596.0,98588.0,0.050667]
[1732244540114,0.050663,98597.0,98590.0,0.050666]
[1732244540312,0.07931633,98596.0,98590.0,0.210666]
[1732244540509,0.02865233,98595.0,98594.0,0.050664]
[1732244540707,0.02865233,98595.0,98594.0,0.210664]
[1732244541225,0.0223199,98595.0,98594.0,0.210664]
[1732244541614,0.00152228,98609.0,98594.0,0.16]
[1732244541809,0.02203336,98608.0,98598.0,0.3608]
[1732244542019,0.00633217,98608.0,98607.0,0.050658]
[1732244542218,0.00633155,98608.0,98607.0,0.327758]
[1732244542424,0.01580596,98614.0,98607.0,0.700798]
[1732244542716,0.055347,98629.0,98617.0,0.050653]
[1732244542909,0.050647,98629.0,98620.0,0.3608]
[1732244543110,0.050647,98629.0,98628.0,0.00019999]
[1732244543310,0.07370959,98629.0,98628.0,0.00019999]
[1732244543512,0.07370959,98629.0,98628.0,0.00029912]
[1732244545226,0.07370959,98629.0,98628.0,0.36109912]
[1732244546113,0.07370959,98629.0,98628.0,0.00029912]
[1732244546310,0.37786959,98629.0,98628.0,0.00029912]
[1732244546723,0.37786959,98629.0,98628.0,0.36109912]
[1732244546925,0.37786959,98629.0,98628.0,0.00029912]
[1732244547821,0.73866959,98629.0,98628.0,0.00029912]